fUST/lending_fUST_20251007
["ID","MTS","AMOUNT","RATE_DAILY","PERIOD"]
[389764111,1759836512756,500.0,0.00017376,2]
[389764112,1759836512785,500.0,0.00017376,2]
[389764113,1759836512818,500.0,0.00017376,2]
[389764114,1759836512848,500.0,0.00017376,2]
[389764115,1759836512874,66.15151361,0.00017376,2]
[389764116,1759836512898,433.84848639,0.00017376,2]
[389764117,1759836512923,500.0,0.00017376,2]
[389764118,1759836512953,500.0,0.00017376,2]
[389764119,1759836512981,500.0,0.00017376,2]
[389764120,1759836513008,500.0,0.00017376,2]
[389764121,1759836513040,500.0,0.00017376,2]
[389764122,1759836513067,500.0,0.00017376,2]
[389764123,1759836513099,500.0,0.00017376,2]
[389764124,1759836513126,500.0,0.00017376,2]
[389764125,1759836513155,500.0,0.00017376,2]
[389764126,1759836513184,583.75393165,0.00017376,2]
[389764127,1759836513216,500.0,0.00017376,2]
[389764128,1759836513248,500.0,0.00017376,2]
[389764129,1759836513276,500.0,0.00017376,2]
[389764130,1759836513303,556.22601902,0.00017376,2]
[389764131,1759836513338,500.0,0.00017376,2]
[389764132,1759836513592,500.0,0.00017376,2]
[389764133,1759836513633,355.5695025,0.00017376,2]
[389764134,1759836513660,500.0,0.00017376,2]
[389764135,1759836513688,500.0,0.00017376,2]
[389764136,1759836513721,70.61206044,0.00017376,2]
[389764137,1759836513744,429.38793956,0.00017376,2]
[389764138,1759836513771,500.0,0.00017376,2]
[389764139,1759836513808,500.0,0.00017376,2]
[389764140,1759836513844,500.0,0.00017376,2]
[389764141,1759836513877,500.0,0.00017376,2]
[389764142,1759836513906,500.0,0.00017376,2]
[389764143,1759836513937,500.0,0.00017376,2]
[389764144,1759836513968,500.0,0.00017376,2]
[389764145,1759836513998,500.0,0.00017376,2]
[389764146,1759836514030,500.0,0.00017376,2]
[389764147,1759836514063,500.0,0.00017376,2]
[389764148,1759836514091,500.0,0.00017376,2]
[389764149,1759836514119,500.0,0.00017376,2]
[389764150,1759836514163,500.0,0.00017376,2]
[389764151,1759836514208,500.0,0.00017376,2]
[389764152,1759836514236,500.0,0.00017376,2]
[389764153,1759836514267,500.0,0.00017376,2]
[389764154,1759836514295,500.0,0.00017376,2]
[389764155,1759836514330,500.0,0.00017376,2]
[389764156,1759836514370,500.0,0.00017376,2]
[389764157,1759836514398,70.62206044,0.00017376,2]
[389764158,1759836514421,429.37793956,0.00017376,2]
[389764159,1759836514458,500.0,0.00017376,2]
[389764160,1759836514489,500.0,0.00017376,2]
[389764161,1759836514526,500.0,0.00017376,2]
[389764166,1759836536466,5000.0,0.00017376,2]
[389764168,1759836542387,300.0,0.00017376,2]
[389764171,1759836559696,2770.63206044,0.00017376,2]
[389764172,1759836559721,2229.36793956,0.00017376,2]
[389764173,1759836561567,311.99848553,0.00017211,2]
[389764175,1759836563064,1246.74594817,0.00017211,2]
[389764177,1759836571202,-1811.89762674,0.00017377,2]
[389764178,1759836573150,-10000.01,0.00017377,2]
[389764179,1759836577252,-10000.01,0.00017377,2]
[389764181,1759836581223,-10000.01,0.00017377,2]
[389764182,1759836582856,5000.0,0.00017376,2]
[389764183,1759836585316,-5000.01,0.00017377,2]
[389764185,1759836587343,-10000.01,0.00017377,2]
[389764186,1759836591329,-10000.01,0.00017377,2]
[389764188,1759836595372,-10000.01,0.00017377,2]
[389764189,1759836599482,-10000.01,0.00017377,2]
[389764190,1759836601425,300.0,0.00017376,2]
[389764192,1759836602517,300.0,0.00017376,2]
[389764193,1759836603010,300.0,0.00017376,2]
[389764194,1759836603382,300.0,0.00017376,2]
[389764195,1759836603532,-8800.01,0.00017377,2]
[389764196,1759836604504,11.89762674,0.00017376,2]
[389764197,1759836604526,1188.10237326,0.00017376,2]
[389764198,1759836605531,-8800.01,0.00017377,2]
[389764199,1759836607049,300.0,0.00017376,2]
[389764200,1759836607548,-9700.01,0.00017377,2]
[389764201,1759836609717,-10000.01,0.00017377,2]
[389764202,1759836610696,737.851483,0.00013699,2]
[389764203,1759836611587,-9262.158517,0.00017377,2]
[389764204,1759836613346,236.8628904,0.00017376,2]
[389764205,1759836613619,-9763.1471096,0.00017377,2]
[389764207,1759836615738,-10000.01,0.00017377,2]
[389764208,1759836617624,-10000.01,0.00017377,2]
[389764209,1759836617689,500.0,0.00017376,2]
[389764211,1759836618434,500.0,0.00017376,2]
[389764212,1759836618464,460.6301311,0.00017376,2]
[389764213,1759836619474,500.0,0.00017376,2]
[389764214,1759836619525,372.84105583,0.00017376,2]
[389764215,1759836619779,500.0,0.00017376,2]
[389764216,1759836619862,-7166.53881307,0.00017377,2]
[389764217,1759836623794,-10000.01,0.00017377,2]
[389764218,1759836623929,-10000.01,0.00017377,2]
[389764222,1759836627779,-10000.01,0.00017377,2]
[389764223,1759836627917,-3894.10206641,0.00017377,2]
[389764224,1759836627940,-2211.80586718,0.00017377,2]
[389764255,1759836631650,10000.01,0.00017377,2]
[389764282,1759836631974,-2295.79541254,0.00017377,2]
[389764287,1759836632025,-89366.68280085,0.00017377,2]
[389764294,1759836632080,-1492.6853606,0.00017377,2]
[389764330,1759836633888,-10000.01,0.00017377,2]
[389764331,1759836635944,-10000.01,0.00017377,2]
[389764337,1759836637905,-10000.01,0.00017377,2]
[389764351,1759836639864,-67056.80851042,0.00017377,2]
[389764352,1759836639876,-5824.58858463,0.00017377,2]
[389764353,1759836639926,-10000.01,0.00017377,2]
[389764356,1759836642181,-10000.01,0.00017377,2]
[389764501,1759836643872,-10000.01,0.00017377,2]
[389764672,1759836645949,-10000.01,0.00017377,2]
[389764703,1759836646232,-21149.5216,0.00017377,2]
[389764872,1759836647940,-10000.01,0.00017377,2]
[389765082,1759836649969,-10000.01,0.00017377,2]
[389765223,1759836652048,-10000.01,0.00017377,2]
[389765269,1759836654027,-10000.01,0.00017377,2]
[389765270,1759836658140,-10000.01,0.00017377,2]
[389765271,1759836658998,-10000.01,0.00017377,2]
[389765272,1759836660170,4703.72206641,0.00017361,2]
[389765273,1759836660196,3152.25613559,0.00017361,2]
[389765274,1759836662585,211.0747086,0.00017319,2]
[389765275,1759836662699,-1932.9570894,0.00017377,2]
[389765276,1759836662727,-10000.01,0.00017377,2]
[389765277,1759836662811,300.0,0.00017376,2]
[389765279,1759836664134,-9700.01,0.00017377,2]
[389765280,1759836664251,-10000.01,0.00017377,2]
[389765281,1759836666498,-10000.01,0.00017377,2]
[389765282,1759836670117,500.0,0.00019178,30]
[389765284,1759836670779,500.0,0.00019178,30]
[389765285,1759836671470,500.0,0.00019178,30]
[389765286,1759836671882,500.0,0.00019178,30]
[389765287,1759836672178,-1180.78064156,0.00017377,2]
[389765288,1759836672207,-164.66387778,0.00017377,2]
[389765289,1759836672665,500.0,0.00019178,30]
[389765290,1759836673258,500.0,0.00019178,30]
[389765291,1759836673792,500.0,0.00019178,30]
[389765292,1759836674420,500.0,0.00019178,30]
[389765293,1759836674867,500.0,0.00019178,30]
[389765294,1759836675338,500.0,0.00019178,30]
[389765295,1759836675797,500.0,0.00019178,30]
[389765296,1759836676327,500.0,0.00019178,30]
[389765297,1759836676831,500.0,0.00019178,30]
[389765298,1759836677327,500.0,0.00019178,30]
[389765299,1759836677835,500.0,0.00019178,30]
[389765300,1759836678293,500.0,0.00019178,30]
[389765301,1759836678814,500.0,0.00019178,30]
[389765302,1759836679208,500.0,0.00019178,30]
[389765303,1759836679693,500.0,0.00019178,30]
[389765304,1759836679931,1270.42709309,0.00017377,2]
[389765305,1759836680268,500.0,0.00019178,30]
[389765306,1759836680799,298.91628933,0.00019178,30]
[389765320,1759836766476,666.0,0.0001696,2]
[389765321,1759836775070,300.0,0.00017377,2]
[389765328,1759836790988,2117.42832755,0.00017377,2]
[389765329,1759836795560,-1200.0,0.00017418,2]
[389765330,1759836795589,-300.0,0.00017418,2]
[389765331,1759836799048,502.33554724,0.00017377,2]
[389765335,1759836801082,6497.67445276,0.00017277,2]
[389765336,1759836801103,2955.26554068,0.00017277,2]
[389765337,1759836801125,10000.01,0.00017277,2]
[389765338,1759836801146,10000.01,0.00017277,2]
[389765339,1759836801167,6336.67915581,0.00017277,2]
[389765340,1759836801189,10000.01,0.00017277,2]
[389765341,1759836801210,10000.01,0.00017277,2]
[389765342,1759836801231,10000.01,0.00017277,2]
[389765343,1759836801253,10000.01,0.00017277,2]
[389765344,1759836801276,10000.01,0.00017277,2]
[389765345,1759836801297,10000.01,0.00017277,2]
[389765346,1759836801318,10000.01,0.00017277,2]
[389765347,1759836801340,10000.01,0.00017277,2]
[389765348,1759836801362,10000.01,0.00017277,2]
[389765349,1759836801381,10000.01,0.00017277,2]
[389765350,1759836801401,10000.01,0.00017277,2]
[389765355,1759836999661,204.0,0.00028767,120]
[389765356,1759837014102,-9354.21988287,0.00016275,2]
[389765357,1759837017571,-2375.04100973,0.00016275,2]
[389765358,1759837024297,5000.0,0.00016275,2]
[389765360,1759837042960,-5000.0,0.00016433,2]
[389765361,1759837049059,0.01,0.00016433,2]
[389765362,1759837049082,4999.99,0.00016433,2]
[389765363,1759837057018,5000.0,0.00016433,2]
[389765365,1759837084666,400.89,0.00015225,2]
[389765366,1759837084986,400.89,0.00015225,2]
[389765402,1759837371280,210.4303347,0.00015737,2]
[389765410,1759837440650,259.5046469,0.00028767,120]
[389765411,1759837463277,5000.0,0.0001579,2]
[389765412,1759837471822,2732.69429952,0.0001579,2]
[389765416,1759837529596,-949.8471009,0.000162,2]
[389765417,1759837545590,-5000.0,0.00016431,2]
[389765419,1759837556372,0.01,0.00016431,2]
[389765420,1759837556395,4999.99,0.00016431,2]
[389765423,1759837561759,-300.0,0.00016597,2]
[389765424,1759837561786,-300.0,0.00016597,2]
[389765425,1759837561817,-300.0,0.00016597,2]
[389765426,1759837561846,-300.0,0.00016597,2]
[389765427,1759837561877,-1200.0,0.00016597,2]
[389765428,1759837562531,300.0,0.00016596,2]
[389765430,1759837579529,4900.01,0.00016597,2]
[389765431,1759837579551,99.99,0.00016597,2]
[389765432,1759837580920,-1200.0,0.00016598,2]
[389765436,1759837603066,5000.0,0.00016598,2]
[389765437,1759837607323,166.76739692,0.000165,2]
[389765440,1759837626050,2433.24260308,0.00016598,2]
[389765441,1759837630644,-2566.75739692,0.00016598,2]
[389765442,1759837630671,-300.0,0.00016599,2]
[389765443,1759837643573,1200.0,0.00016599,2]
[389765446,1759837648704,3066.49520616,0.00016599,2]
[389765447,1759837651452,-1933.50479384,0.00016599,2]
[389765448,1759837651481,-300.0,0.000166,2]
[389765449,1759837651511,-300.0,0.000166,2]
[389765450,1759837651541,-300.0,0.000166,2]
[389765451,1759837651571,-300.0,0.000166,2]
[389765452,1759837651600,-300.0,0.000166,2]
[389765453,1759837651629,-300.0,0.000166,2]
[389765454,1759837651658,-300.0,0.000166,2]
[389765455,1759837651687,-300.0,0.000166,2]
[389765456,1759837651715,-300.0,0.000166,2]
[389765457,1759837651744,-300.0,0.000166,2]
[389765458,1759837655633,-300.0,0.000166,2]
[389765459,1759837655662,-300.0,0.000166,2]
[389765460,1759837655690,-300.0,0.000166,2]
[389765461,1759837655718,-300.0,0.000166,2]
[389765462,1759837655747,-300.0,0.000166,2]
[389765463,1759837663726,-1266.2830154,0.000166,2]
[389765464,1759837665563,-10000.01,0.000166,2]
[389765465,1759837669672,-10000.01,0.000166,2]
[389765466,1759837672068,5000.0,0.00016597,2]
[389765467,1759837673755,-5000.01,0.000166,2]
[389765468,1759837675777,-10000.01,0.000166,2]
[389765469,1759837679688,-10000.01,0.000166,2]
[389765470,1759837679907,4900.02,0.00016597,2]
[389765471,1759837679931,99.98,0.00016597,2]
[389765472,1759837683771,-300.0,0.00016599,2]
[389765473,1759837683800,-3733.6669846,0.000166,2]
[389765557,1759837832522,-534.92296214,0.0001627,2]
[389765566,1759837832568,-3824.8175,0.0001627,2]
[389765569,1759837832585,-640.25953786,0.0001627,2]
[389765571,1759837832595,-1200.0,0.00016433,2]
[389765595,1759837832838,-5000.0,0.00016434,2]
[389765596,1759837832851,-300.0,0.00016598,2]
[389765597,1759837832861,-300.0,0.00016598,2]
[389765599,1759837832870,-300.0,0.00016598,2]
[389765601,1759837832880,-300.0,0.00016598,2]
[389765602,1759837832889,-300.0,0.00016598,2]
[389765603,1759837832898,-5000.0,0.000166,2]
[389765604,1759837832908,-494.35231373,0.00016658,2]
[389765605,1759837832917,-166.7673969,0.00016758,2]
[389765606,1759837832928,-40128.64192491,0.00016758,2]
[389766324,1759837846282,-3011.11624028,0.0001659,2]
[389767928,1759837894053,-5000.0,0.0001626,2]
[389767929,1759837899867,0.01,0.0001626,2]
[389767930,1759837899888,4999.99,0.0001626,2]
[389767931,1759837910094,-5000.0,0.00016424,2]
[389767932,1759837915532,0.01,0.00016424,2]
[389767933,1759837915553,4999.99,0.00016424,2]
[389767934,1759837923828,5000.0,0.00016424,2]
[389767935,1759837926165,-1988.88375972,0.0001659,2]
[389767936,1759837932061,3453.63798201,0.0001659,2]
[389767937,1759837940020,2568.60449855,0.0001659,2]
[389767938,1759837940042,2431.39550145,0.0001659,2]
[389767939,1759837949563,1200.0,0.00028767,120]
[389767940,1759837957576,1000.0,0.00028767,120]
[389767941,1759837964728,1000.0,0.00028767,120]
[389767942,1759837980874,800.0,0.00028767,120]
[389767943,1759837997356,1048.13495015,0.00028767,120]
[389767944,1759838034194,166.31,0.0001579,2]
[389767945,1759838046387,162.723988,0.00016017,120]
[389767946,1759838142005,5000.0,0.0001579,2]
[389767947,1759838151827,202.0920601,0.0001579,2]
[389767948,1759838160444,4631.6079399,0.0001579,2]
[389767949,1759838160468,368.3920601,0.0001579,2]
[389767950,1759838168776,5000.0,0.0001579,2]
[389767951,1759838184024,4631.6179399,0.0001579,2]
[389767952,1759838184046,368.3820601,0.0001579,2]
[389767953,1759838192439,1282.7663634,0.0001579,2]
[389767954,1759838207308,5000.0,0.0001579,2]
[389767964,1759838213348,167.2435744,8.155e-05,2]
[389767965,1759838229944,3181.6180021,0.0001579,2]
[389767966,1759838229965,1818.3819979,0.0001579,2]
[389767969,1759838252659,5000.0,0.0001579,2]
[389767972,1759838273436,500.0,0.00027397,120]
[389767973,1759838275920,3181.6280021,0.0001579,2]
[389767974,1759838275944,1818.3719979,0.0001579,2]
[389767975,1759838296640,160.0,0.00026,60]
[389767976,1759838298691,5000.0,0.0001579,2]
[389767977,1759838306944,2740.66472593,0.00015797,2]
[389767980,1759838322238,5000.0,0.00015797,2]
[389767982,1759838344875,2259.34527407,0.00015797,2]
[389767984,1759838475878,1371.511208,0.00015705,2]
[389767991,1759838512026,-300.0,0.00015796,2]
[389767992,1759838512057,-2740.65472593,0.00015797,2]
[389767993,1759838512086,-500.0,0.00015797,2]
[389767994,1759838512113,-500.0,0.00015797,2]
[389767995,1759838512385,-2878.8802515,0.00015905,2]
[389767996,1759838512727,-4242.249497,0.00015905,2]
[389767997,1759838512756,-166.7673969,0.00015917,2]
[389767998,1759838512785,-162.723988,0.00016017,2]
[389767999,1759838513200,-1200.0,0.00016588,2]
[389768000,1759838520853,5000.0,0.00016588,2]
[389768001,1759838529248,2261.41589811,0.00016588,2]
[389768002,1759838544745,5000.0,0.0001579,2]
[389768003,1759838568348,5000.0,0.0001579,2]
[389768004,1759838591385,0.01,0.0001579,2]
[389768005,1759838591408,4999.99,0.0001579,2]
[389768006,1759838604833,500.0,0.00027397,120]
[389768007,1759838615077,5000.0,0.0001579,2]
[389768008,1759838637829,0.02,0.0001579,2]
[389768009,1759838637852,4999.98,0.0001579,2]
[389768010,1759838660812,5000.0,0.0001579,2]
[389768011,1759838684141,0.03,0.0001579,2]
[389768012,1759838684163,4999.97,0.0001579,2]
[389768013,1759838707225,5000.0,0.0001579,2]
[389768014,1759838729831,0.04,0.0001579,2]
[389768015,1759838729853,2208.30002481,0.0001579,2]
[389768016,1759838818030,151.0,0.00028767,120]
[389768017,1759838849268,2209.9432257,0.00015742,2]
[389768018,1759838850586,151.0,0.00028767,120]
[389768019,1759838884805,187.08,0.00015774,2]
[389768020,1759838885109,187.08,0.00015774,2]
[389768021,1759838885459,187.07,0.00015774,2]
[389768025,1759838939213,301.0,0.00028767,120]
[389768026,1759838940148,1000.0,0.00027397,120]
[389768027,1759839004317,-214.4883191,0.00015989,2]
[389768028,1759839004345,-196.62087378,0.00015994,2]
[389768029,1759839004372,-500.04363888,0.00016,2]
[389768030,1759839004402,-168.0,0.00016536,2]
[389768031,1759839004438,-168.0,0.0001654,2]
[389768032,1759839004481,-168.0,0.00016542,2]
[389768033,1759839004511,-168.0,0.00016562,2]
[389768034,1759839004540,-168.0,0.00016607,2]
[389768035,1759839004570,-168.0,0.00016633,2]
[389768036,1759839004596,-300.0,0.0001665,2]
[389768037,1759839004624,-300.0,0.0001665,2]
[389768038,1759839004652,-300.0,0.0001665,2]
[389768039,1759839004681,-300.0,0.0001665,2]
[389768040,1759839004712,-168.0,0.00016651,2]
[389768041,1759839004837,-1200.0,0.0001665,2]
[389768042,1759839012586,-455.77094501,0.00016551,2]
[389768043,1759839018685,-8247.29039127,0.00016651,2]
[389768044,1759839018804,-10000.01,0.00016651,2]
[389768045,1759839018827,-10000.01,0.00016651,2]
[389768046,1759839018900,-10000.01,0.00016651,2]
[389768047,1759839019178,-10000.01,0.00016651,2]
[389768048,1759839019316,-1752.66960873,0.00016651,2]
[389768084,1759839035890,-2895.86,0.00016484,2]
[389768085,1759839035900,-35514.99692702,0.00016564,2]
[389768086,1759839035945,-279.12312885,0.00016564,2]
[389768087,1759839035956,-23260.01928733,0.00016564,2]
[389768088,1759839035966,-1314.56395337,0.00016651,2]
[389768089,1759839035975,-168.0,0.00016682,2]
[389768090,1759839035985,-329.0,0.00016758,2]
[389768091,1759839035994,-329.0,0.00016758,2]
[389768092,1759839036004,-329.0,0.00016758,2]
[389768093,1759839036013,-329.0,0.00016758,2]
[389768094,1759839036023,-216.28296116,0.00016794,2]
[389768095,1759839036032,-346.0,0.00016889,2]
[389768096,1759839036041,-168.0,0.00016905,2]
[389768097,1759839036050,-1200.0,0.00016986,2]
[389768098,1759839036060,-300.0,0.0001699,2]
[389768099,1759839036069,-300.0,0.0001699,2]
[389768100,1759839036078,-300.0,0.0001699,2]
[389768101,1759839036087,-300.0,0.0001699,2]
[389768103,1759839036097,-300.0,0.0001699,2]
[389768106,1759839036106,-300.0,0.0001699,2]
[389768108,1759839036115,-300.0,0.0001699,2]
[389768111,1759839036124,-300.0,0.0001699,2]
[389768114,1759839036134,-300.0,0.0001699,2]
[389768115,1759839036143,-300.0,0.0001699,2]
[389768117,1759839036152,-300.0,0.0001699,2]
[389768119,1759839036161,-300.0,0.0001699,2]
[389768121,1759839036170,-300.0,0.0001699,2]
[389768124,1759839036180,-300.0,0.0001699,2]
[389768126,1759839036189,-300.0,0.0001699,2]
[389768128,1759839036198,-1309.55,0.00017073,2]
[389768130,1759839036208,-3026.0,0.0001708,2]
[389768132,1759839036218,-500.0,0.00017167,2]
[389768134,1759839036227,-500.0,0.00017167,2]
[389768135,1759839036235,-500.0,0.00017167,2]
[389768137,1759839036245,-500.0,0.00017167,2]
[389768139,1759839036255,-500.0,0.00017167,2]
[389768141,1759839036263,-500.0,0.00017167,2]
[389768143,1759839036272,-500.0,0.00017167,2]
[389768145,1759839036282,-1974.62878906,0.00017167,2]
[389768147,1759839036291,-500.0,0.00017167,2]
[389768149,1759839036300,-500.0,0.00017167,2]
[389768151,1759839036309,-422.569492,0.00017167,2]
[389768153,1759839036318,-152.85,0.00017167,3]
[389768155,1759839036327,-458.56,0.00017167,3]
[389768157,1759839036336,-200.32561186,0.00017173,2]
[389768159,1759839036346,-502.87408958,0.00017173,2]
[389768161,1759839036355,-500.0,0.00017173,2]
[389768163,1759839036365,-500.0,0.00017173,2]
[389768165,1759839036374,-500.0,0.00017173,2]
[389768168,1759839036388,-500.53852983,0.00017173,2]
[389768170,1759839036400,-500.0,0.00017173,2]
[389768172,1759839036412,-500.0,0.00017173,2]
[389768174,1759839036425,-261.39363659,0.00017173,2]
[389768177,1759839036438,-500.0,0.00017173,2]
[389768179,1759839036452,-500.0,0.00017173,2]
[389768181,1759839036464,-500.0,0.00017173,2]
[389768183,1759839036476,-200.20542948,0.00017173,2]
[389768185,1759839036488,-1.75087174,0.00017173,2]
[389768216,1759839038312,-498.24912826,0.00017173,2]
[389768217,1759839038323,-500.86608413,0.00017173,2]
[389768218,1759839038335,-500.0,0.00017173,2]
[389768219,1759839038346,-500.0,0.00017173,2]
[389768220,1759839038357,-500.4367729,0.00017173,2]
[389768221,1759839038369,-500.0,0.00017173,2]
[389768222,1759839038380,-500.0,0.00017173,2]
[389768223,1759839038391,-500.0,0.00017173,2]
[389768224,1759839038402,-500.0,0.00017173,2]
[389768225,1759839038413,-1324.0,0.00017173,2]
[389768226,1759839038424,-151.0,0.00017173,2]
[389768227,1759839038436,-151.0,0.00017173,2]
[389768228,1759839038449,-189.6808087,0.00017173,2]
[389768229,1759839038461,-151.0,0.00017173,2]
[389768230,1759839038472,-151.1316672,0.00017173,2]
[389768231,1759839038483,-151.0,0.00017173,2]
[389768232,1759839038494,-151.0,0.00017173,2]
[389768233,1759839038506,-500.0,0.00017174,2]
[389768234,1759839038517,-151.0,0.00017174,2]
[389768235,1759839038530,-151.0,0.00017174,2]
[389768236,1759839038541,-500.0,0.00017174,2]
[389768237,1759839038553,-296.39650181,0.00017175,2]
[389768238,1759839038564,-500.0,0.00017175,2]
[389768239,1759839038575,-500.0,0.00017175,2]
[389768240,1759839038587,-500.0,0.00017175,2]
[389768241,1759839038598,-500.0,0.00017175,2]
[389768242,1759839038610,-411.76622437,0.00017175,2]
[389768243,1759839038621,-500.0,0.00017175,2]
[389768244,1759839038632,-500.0,0.00017175,2]
[389768245,1759839038643,-500.0,0.00017175,2]
[389768246,1759839038655,-500.0,0.00017175,2]
[389768247,1759839038667,-500.0,0.00017175,2]
[389768248,1759839038678,-500.0,0.00017175,2]
[389768249,1759839038690,-358.6771133,0.00017175,2]
[389768250,1759839038701,-500.0,0.00017175,2]
[389768251,1759839038712,-500.0,0.00017175,2]
[389768252,1759839038724,-500.0,0.00017175,2]
[389768253,1759839038736,-500.0,0.00017175,2]
[389768254,1759839038747,-500.0,0.00017175,2]
[389768255,1759839038760,-500.0,0.00017175,2]
[389768256,1759839038771,-500.0,0.00017175,2]
[389768257,1759839038783,-500.0,0.00017175,2]
[389768258,1759839038794,-500.0,0.00017175,2]
[389768259,1759839038805,-500.0,0.00017175,2]
[389768260,1759839038815,-500.0,0.00017175,2]
[389768261,1759839038827,-500.0,0.00017175,2]
[389768262,1759839038838,-500.0,0.00017175,2]
[389768263,1759839038849,-500.0,0.00017175,2]
[389768264,1759839038861,-575.55198829,0.00017175,2]
[389768265,1759839038872,-500.0,0.00017175,2]
[389768266,1759839038882,-500.0,0.00017175,2]
[389768267,1759839038894,-559.67942268,0.00017175,2]
[389768268,1759839038905,-500.0,0.00017175,2]
[389768269,1759839038917,-500.0,0.00017175,2]
[389768270,1759839038928,-500.0,0.00017175,2]
[389768271,1759839038939,-500.0,0.00017175,2]
[389768272,1759839038950,-500.0,0.00017175,2]
[389768273,1759839038961,-500.0,0.00017175,2]
[389768274,1759839038972,-500.0,0.00017175,2]
[389768275,1759839038983,-500.0,0.00017175,2]
[389768276,1759839038993,-500.0,0.00017175,2]
[389768277,1759839039006,-500.0,0.00017175,2]
[389768278,1759839039017,-535.79947043,0.00017175,2]
[389768279,1759839039028,-350.0,0.00017175,2]
[389768280,1759839039039,-500.0,0.00017175,2]
[389768281,1759839039051,-500.0,0.00017175,2]
[389768282,1759839039061,-500.0,0.00017175,2]
[389768283,1759839039071,-500.0,0.00017175,2]
[389768284,1759839039081,-500.0,0.00017175,2]
[389768285,1759839039091,-500.0,0.00017175,2]
[389768286,1759839039100,-500.0,0.00017175,2]
[389768287,1759839039110,-500.0,0.00017175,2]
[389768288,1759839039119,-500.0,0.00017175,2]
[389768289,1759839039128,-500.0,0.00017175,2]
[389768290,1759839039508,-500.0,0.00017175,2]
[389768291,1759839039528,-242.02636566,0.00017175,2]
[389768292,1759839039538,-500.0,0.00017175,2]
[389768293,1759839039547,-500.0,0.00017175,2]
[389768294,1759839039557,-500.0,0.00017175,2]
[389768295,1759839039566,-500.0,0.00017175,2]
[389768296,1759839039576,-500.0,0.00017175,2]
[389768297,1759839039586,-500.0,0.00017175,2]
[389768298,1759839039597,-500.0,0.00017175,2]
[389768299,1759839039607,-500.0,0.00017175,2]
[389768300,1759839039617,-500.0,0.00017175,2]
[389768301,1759839039627,-500.0,0.00017175,2]
[389768302,1759839039637,-500.0,0.00017175,2]
[389768303,1759839039648,-500.0,0.00017175,2]
[389768304,1759839039657,-500.0,0.00017175,2]
[389768305,1759839039666,-500.0,0.00017175,2]
[389768306,1759839039676,-500.0,0.00017175,2]
[389768307,1759839039686,-500.0,0.00017175,2]
[389768308,1759839039696,-500.0,0.00017175,2]
[389768309,1759839039705,-500.0,0.00017175,2]
[389768310,1759839039715,-500.0,0.00017175,2]
[389768311,1759839039725,-500.0,0.00017175,2]
[389768312,1759839039735,-500.0,0.00017175,2]
[389768313,1759839039744,-500.0,0.00017175,2]
[389768314,1759839039762,-500.0,0.00017175,2]
[389768315,1759839039776,-500.0,0.00017175,2]